fUSD/lending_fUSD_20250417
["ID","MTS","AMOUNT","RATE_DAILY","PERIOD"]
[358239227,1744865435822,-616.03605027,0.00052054,120]
[358239228,1744865435832,-500.0,0.00052054,120]
[358239229,1744865435841,-500.0,0.00052054,120]
[358239230,1744865435850,-500.0,0.00052054,120]
[358239231,1744865435862,-1488.03,0.00052054,120]
[358239232,1744865435872,-500.0,0.00052054,120]
[358239233,1744865435882,-346.13825906,0.00052054,120]
[358239234,1744865435894,-500.0,0.00052054,120]
[358239235,1744865435905,-500.0,0.00052054,120]
[358239236,1744865435915,-500.0,0.00052054,120]
[358239237,1744865435924,-500.0,0.00052054,120]
[358239238,1744865435934,-1611.05,0.00052054,120]
[358239239,1744865435943,-500.0,0.00052054,120]
[358239240,1744865435953,-500.0,0.00052054,120]
[358239241,1744865435962,-587.12,0.00052054,120]
[358239242,1744865435972,-500.0,0.00052054,120]
[358239243,1744865435982,-500.0,0.00052054,120]
[358239244,1744865435992,-500.0,0.00052054,120]
[358239245,1744865436001,-1707.22,0.00052054,120]
[358239246,1744865436010,-1551.33,0.00052054,120]
[358239247,1744865436020,-500.0,0.00052054,120]
[358239248,1744865436030,-677.79,0.00052054,120]
[358239249,1744865436040,-1027.69,0.00052054,120]
[358239250,1744865436049,-515.51627235,0.00052054,120]
[358239251,1744865436058,-498.0,0.00052054,120]
[358239252,1744865436068,-1876.3,0.00052054,120]
[358239253,1744865436078,-500.0,0.00052054,120]
[358239254,1744865436090,-500.0,0.00052054,120]
[358239255,1744865436100,-500.0,0.00052054,120]
[358239256,1744865436110,-549.25891801,0.00052054,120]
[358239257,1744865436120,-1663.85,0.00052054,120]
[358239258,1744865436131,-500.0,0.00052054,120]
[358239259,1744865436141,-2277.9,0.00052054,120]
[358239260,1744865436152,-500.0,0.00052054,120]
[358239261,1744865436161,-500.0,0.00052054,120]
[358239262,1744865436170,-500.0,0.00052054,120]
[358239263,1744865436181,-500.0,0.00052054,120]
[358239264,1744865436191,-500.0,0.00052054,120]
[358239265,1744865436201,-509.05605198,0.00052054,120]
[358239266,1744865436210,-1152.53,0.00052054,120]
[358239267,1744865436222,-500.0,0.00052054,120]
[358239268,1744865436233,-858.96,0.00052054,120]
[358239269,1744865436243,-956.16,0.00052054,120]
[358239270,1744865436253,-500.0,0.00052054,120]
[358239271,1744865436262,-500.0,0.00052054,120]
[358239272,1744865436271,-500.0,0.00052054,120]
[358239273,1744865436281,-500.0,0.00052054,120]
[358239274,1744865436290,-500.0,0.00052054,120]
[358239275,1744865436300,-505.77665128,0.00052054,120]
[358239276,1744865436309,-500.0,0.00052054,120]
[358239277,1744865436319,-500.0,0.00052054,120]
[358239278,1744865436328,-500.0,0.00052054,120]
[358239279,1744865436338,-151.569498,0.00052054,120]
[358239280,1744865436347,-500.0,0.00052054,120]
[358239281,1744865436356,-500.0,0.00052054,120]
[358239282,1744865436366,-506.74,0.00052054,120]
[358239283,1744865436375,-518.79,0.00052054,14]
[358239284,1744865436384,-500.0,0.00052054,120]
[358239285,1744865436393,-1050.35,0.00052054,120]
[358239286,1744865436403,-500.0,0.00052054,120]
[358239287,1744865436412,-1306.41,0.00052054,120]
[358239288,1744865436422,-500.0,0.00052054,120]
[358239289,1744865436432,-376.50105532,0.00052054,120]
[358239290,1744865436441,-500.0,0.00052054,120]
[358239291,1744865436451,-500.0,0.00052054,120]
[358239292,1744865436462,-500.0,0.00052054,120]
[358239293,1744865436472,-500.0,0.00052054,120]
[358239294,1744865436481,-500.0,0.00052054,120]
[358239295,1744865436491,-556.47,0.00052054,120]
[358239296,1744865436500,-500.0,0.00052054,120]
[358239297,1744865436510,-500.0,0.00052054,120]
[358239298,1744865436521,-1238.72,0.00052054,120]
[358239299,1744865436531,-500.0,0.00052054,120]
[358239300,1744865436541,-599.72853609,0.00052054,120]
[358239301,1744865436551,-500.0,0.00052054,120]
[358239302,1744865436561,-500.0,0.00052054,120]
[358239303,1744865436570,-500.0,0.00052054,120]
[358239304,1744865436579,-500.0,0.00052054,120]
[358239305,1744865436588,-500.0,0.00052054,120]
[358239306,1744865436598,-500.0,0.00052054,120]
[358239307,1744865436607,-500.0,0.00052054,120]
[358239308,1744865436616,-500.0,0.00052054,120]
[358239309,1744865436626,-500.0,0.00052054,120]
[358239310,1744865436635,-1187.16,0.00052054,120]
[358239311,1744865436645,-1168.32,0.00052054,120]
[358239312,1744865436654,-500.0,0.00052054,120]
[358239313,1744865436664,-500.0,0.00052054,120]
[358239314,1744865436673,-500.0,0.00052054,120]
[358239315,1744865436683,-500.0,0.00052054,120]
[358239316,1744865436692,-500.0,0.00052054,120]
[358239317,1744865436702,-500.0,0.00052054,120]
[358239318,1744865436711,-546.37,0.00052054,120]
[358239319,1744865436721,-500.0,0.00052054,14]
[358239320,1744865436730,-500.0,0.00052054,120]
[358239321,1744865436740,-500.0,0.00052054,120]
[358239322,1744865436749,-500.0,0.00052054,120]
[358239323,1744865436759,-500.0,0.00052054,120]
[358239324,1744865436769,-500.0,0.00052054,120]
[358239325,1744865436778,-500.0,0.00052054,120]
[358239326,1744865436788,-500.0,0.00052054,120]
[358239327,1744865436797,-500.0,0.00052054,120]
[358239328,1744865436808,-1776.77,0.00052054,120]
[358239329,1744865436823,-546.25,0.00052054,120]
[358239330,1744865436833,-520.33991884,0.00052054,120]
[358239331,1744865436843,-672.82,0.00052054,120]
[358239332,1744865436852,-500.0,0.00052054,120]
[358239333,1744865436862,-541.21212206,0.00052054,120]
[358239334,1744865436872,-607.78,0.00052054,120]
[358239335,1744865436882,-500.0,0.00052054,120]
[358239336,1744865436891,-500.0,0.00052054,120]
[358239337,1744865436901,-590.62,0.00052054,120]
[358239338,1744865437116,-500.0,0.00052054,120]
[358239339,1744865437127,-500.0,0.00052054,120]
[358239340,1744865437137,-500.0,0.00052054,120]
[358239341,1744865437147,-500.0,0.00052054,120]
[358239342,1744865437157,-500.0,0.00052054,120]
[358239343,1744865437166,-500.0,0.00052054,120]
[358239344,1744865437176,-500.0,0.00052054,120]
[358239345,1744865437186,-500.0,0.00052054,120]
[358239346,1744865437195,-865.11,0.00052054,120]
[358239347,1744865437204,-500.0,0.00052054,120]
[358239348,1744865437213,-511.72,0.00052054,120]
[358239349,1744865437223,-500.0,0.00052054,120]
[358239350,1744865437232,-500.0,0.00052054,120]
[358239351,1744865437242,-500.0,0.00052054,120]
[358239352,1744865437251,-500.0,0.00052054,120]
[358239353,1744865437261,-523.13,0.00052054,120]
[358239355,1744865437270,-500.0,0.00052054,120]
[358239356,1744865437279,-500.0,0.00052054,120]
[358239357,1744865437289,-580.4556801,0.00052054,120]
[358239358,1744865437300,-505.14458296,0.00052054,120]
[358239359,1744865437310,-500.0,0.00052054,120]
[358239360,1744865437320,-445.67435292,0.00052054,120]
[358239361,1744865437330,-500.0,0.00052054,120]
[358239362,1744865437340,-1568.28,0.00052054,120]
[358239363,1744865437349,-500.0,0.00052054,120]
[358239364,1744865437358,-582.3,0.00052054,120]
[358239365,1744865437367,-1556.61,0.00052054,120]
[358239366,1744865437377,-1079.44,0.00052054,120]
[358239367,1744865437386,-500.0,0.00052054,120]
[358239368,1744865437395,-968.59,0.00052054,120]
[358239369,1744865437405,-530.91960512,0.00052054,120]
[358239371,1744865437415,-517.1620443,0.00052054,120]
[358239372,1744865437424,-500.0,0.00052054,120]
[358239374,1744865437434,-500.0,0.00052054,120]
[358239375,1744865437443,-500.0,0.00052054,120]
[358239376,1744865437453,-541.50803072,0.00052054,120]
[358239377,1744865437463,-571.87,0.00052054,120]
[358239378,1744865437473,-500.0,0.00052054,120]
[358239379,1744865437485,-500.0,0.00052054,120]
[358239380,1744865437494,-500.0,0.00052054,120]
[358239381,1744865437504,-500.0,0.00052054,120]
[358239382,1744865437513,-1231.3,0.00052054,120]
[358239383,1744865437523,-500.0,0.00052054,120]
[358239384,1744865437533,-500.0,0.00052054,120]
[358239385,1744865437543,-1339.19,0.00052054,120]
[358239386,1744865437552,-194.96897677,0.00052054,120]
[358239387,1744865437562,-512.95825098,0.00052054,120]
[358239388,1744865437574,-500.0,0.00052054,120]
[358239389,1744865437585,-500.0,0.00052054,120]
[358239390,1744865437595,-526.44,0.00052054,120]
[358239391,1744865437604,-1497.12,0.00052054,120]
[358239392,1744865437613,-1838.48,0.00052054,120]
[358239393,1744865437623,-1835.49,0.00052054,120]
[358239394,1744865437633,-500.0,0.00052054,120]
[358239395,1744865437642,-1385.5,0.00052054,120]
[358239396,1744865437651,-500.0,0.00052054,120]
[358239397,1744865437660,-505.7517034,0.00052054,120]
[358239398,1744865437669,-513.58,0.00052054,120]
[358239399,1744865437678,-200.49400343,0.00052054,120]
[358239400,1744865437687,-508.03341372,0.00052054,120]
[358239401,1744865437696,-500.0,0.00052054,120]
[358239402,1744865437705,-1032.4,0.00052054,120]
[358239403,1744865437714,-500.0,0.00052054,120]
[358239404,1744865437724,-500.0,0.00052054,120]
[358239405,1744865437733,-500.0,0.00052054,120]
[358239406,1744865437743,-504.11838068,0.00052054,120]
[358239407,1744865437753,-206.55868822,0.00052054,120]
[358239424,1744865438411,-151.0,0.00050766,30]
[358239425,1744865438421,-293.44131178,0.00052054,120]
[358239426,1744865438431,-296.30868822,0.00052054,120]
[358239427,1744865438443,-307.07131178,0.00052054,120]
[358239428,1744865438452,-698.41078369,0.00052054,120]
[358239429,1744865438465,-791.29049999,0.00052054,120]
[358239430,1744865438481,-167.13871632,0.00052054,120]
[358239431,1744865438491,-496.71418219,0.00052054,120]
[358239432,1744865438503,-3.28581781,0.00052054,120]
[358239433,1744865438512,-445.11170324,0.00052054,120]
[358239434,1744865438525,-54.88829676,0.00052054,120]
[358239435,1744865438535,-240.00633086,0.00052054,120]
[358239436,1744865438547,-259.99366914,0.00052054,120]
[358239437,1744865438557,-500.0,0.00052054,120]
[358239438,1744865438567,-145.1378485,0.00052054,120]
[358239439,1744865438588,-150.0,0.00050612,120]
[358239440,1744865438598,-308.84855654,0.00052054,120]
[358239441,1744865439580,-150.0,0.00050695,2]
[358239442,1744865439589,-151.0,0.00050766,30]
[358239443,1744865439599,-151.09359496,0.00052054,120]
[358239444,1744865439609,-600.55,0.00052054,120]
[358239445,1744865439619,-744.21,0.00052054,120]
[358239446,1744865439629,-510.18899979,0.00052054,120]
[358239447,1744865439638,-839.54,0.00052054,120]
[358239448,1744865439647,-500.0,0.00052054,120]
[358239449,1744865439655,-424.18522787,0.00052054,120]
[358239450,1744865439667,-75.81477213,0.00052054,120]
[358239451,1744865439675,-217.40841605,0.00052054,120]
[358239452,1744865439690,-425.45158395,0.00052054,120]
[358239453,1744865439700,-500.0,0.00052054,120]
[358239454,1744865439710,-500.0,0.00052054,120]
[358239455,1744865439719,-175.46304846,0.00052054,120]
[358239456,1744865439754,-324.53695154,0.00052054,120]
[358239457,1744865439763,-500.0,0.00052054,120]
[358239458,1744865439773,-500.0,0.00052054,120]
[358239459,1744865439783,-184.08903039,0.00052054,120]
[358239460,1744865439870,-315.91096961,0.00052054,120]
[358239461,1744865439880,-2226.54,0.00052054,120]
[358239462,1744865439891,-500.0,0.00052054,120]
[358239463,1744865439901,-500.0,0.00052054,120]
[358239464,1744865439910,-500.0,0.00052054,120]
[358239465,1744865439920,-500.0,0.00052054,120]
[358239466,1744865439930,-233.09903039,0.00052054,120]
[358239467,1744865440041,-266.90096961,0.00052054,120]
[358239468,1744865440050,-500.0,0.00052054,120]
[358239469,1744865440062,-500.0,0.00052054,120]
[358239470,1744865440072,-661.56,0.00052054,120]
[358239471,1744865440081,-500.0,0.00052054,120]
[358239472,1744865440090,-500.0,0.00052054,120]
[358239473,1744865440100,-500.0,0.00052054,120]
[358239474,1744865440110,-500.0,0.00052054,120]
[358239475,1744865440120,-988.66,0.00052054,120]
[358239476,1744865440129,-594.6,0.00052054,120]
[358239477,1744865440139,-747.9,0.00052054,120]
[358239478,1744865440148,-2037.01,0.00052054,120]
[358239479,1744865440157,-500.0,0.00052054,120]
[358239480,1744865440167,-500.0,0.00052054,120]
[358239481,1744865440177,-791.68,0.00052054,120]
[358239482,1744865440186,-500.0,0.00052054,120]
[358239483,1744865440196,-500.0,0.00052054,120]
[358239484,1744865440205,-500.0,0.00052054,120]
[358239485,1744865440216,-500.0,0.00052054,120]
[358239486,1744865440309,-500.0,0.00052054,120]
[358239487,1744865440319,-500.0,0.00052054,120]
[358239488,1744865440328,-500.0,0.00052054,120]
[358239489,1744865440337,-850.07,0.00052054,120]
[358239490,1744865440346,-500.0,0.00052054,120]
[358239491,1744865440355,-500.0,0.00052054,120]
[358239492,1744865440364,-500.0,0.00052054,120]
[358239493,1744865440373,-1701.6,0.00052054,120]
[358239494,1744865440382,-500.0,0.00052054,120]
[358239495,1744865440391,-512.80556907,0.00052054,120]
[358239496,1744865440399,-500.0,0.00052054,120]
[358239497,1744865440409,-975.72,0.00052054,120]
[358239498,1744865440418,-500.0,0.00052054,120]
[358239499,1744865440427,-500.0,0.00052054,120]
[358239500,1744865440436,-500.0,0.00052054,120]
[358239501,1744865440445,-500.0,0.00052054,120]
[358239502,1744865440454,-500.0,0.00052054,120]
[358239503,1744865440463,-518.18822824,0.00052054,120]
[358239504,1744865440472,-507.96859142,0.00052054,120]
[358239505,1744865440481,-500.0,0.00052054,120]
[358239506,1744865440490,-500.0,0.00052054,120]
[358239507,1744865440499,-441.11421888,0.00052054,120]
[358239508,1744865440508,-1146.89,0.00052054,120]
[358239509,1744865440518,-748.33,0.00052054,120]
[358239510,1744865440528,-500.0,0.00052054,120]
[358239511,1744865440538,-500.0,0.00052054,120]
[358239512,1744865440547,-1410.66,0.00052054,120]
[358239513,1744865440556,-1131.92,0.00052054,120]
[358239514,1744865440566,-515.09011453,0.00052054,120]
[358239515,1744865440575,-542.06443327,0.00052054,120]
[358239516,1744865440585,-189.16517466,0.00052054,120]
[358239517,1744865440595,-500.0,0.00052054,120]
[358239518,1744865440604,-794.66,0.00052054,120]
[358239519,1744865440613,-1613.81,0.00052054,120]
[358239520,1744865440623,-871.89,0.00052054,120]
[358239521,1744865440633,-500.0,0.00052054,120]
[358239522,1744865440642,-1281.06,0.00052054,120]
[358239523,1744865440651,-501.69755837,0.00052054,120]
[358239524,1744865440660,-500.0,0.00052054,120]
[358239525,1744865440670,-500.0,0.00052054,120]
[358239526,1744865440679,-501.54167596,0.00052054,120]
[358239527,1744865440688,-1695.96,0.00052054,120]
[358239528,1744865440698,-621.1406273,0.00052054,120]
[358239529,1744865440707,-500.0,0.00052054,120]
[358239530,1744865440717,-832.65,0.00052054,120]
[358239531,1744865440727,-500.0,0.00052054,120]
[358239532,1744865440737,-594.65,0.00052054,120]
[358239533,1744865440747,-2513.13,0.00052054,120]
[358239534,1744865440757,-546.04521997,0.00052054,120]
[358239535,1744865440766,-500.0,0.00052054,120]
[358239536,1744865440775,-986.98,0.00052054,120]
[358239537,1744865440784,-1137.16,0.00052054,120]
[358239538,1744865440794,-500.0,0.00052054,120]
[358239539,1744865440803,-500.0,0.00052054,120]
[358239540,1744865440813,-825.48,0.00052054,120]
[358239541,1744865440824,-500.0,0.00052054,120]
[358239542,1744865440833,-932.28,0.00052054,118]
[358239543,1744865440843,-500.0,0.00052054,120]
[358239544,1744865440852,-300.0,0.00052054,120]
[358239545,1744865440861,-500.0,0.00052054,120]
[358239546,1744865440871,-767.81,0.00052054,120]
[358239547,1744865440880,-500.0,0.00052054,120]
[358239548,1744865440889,-500.0,0.00052054,120]
[358239549,1744865440899,-500.0,0.00052054,120]
[358239550,1744865440909,-500.0,0.00052054,120]
[358239551,1744865440918,-722.12,0.00052054,120]
[358239552,1744865440928,-500.0,0.00052054,120]
[358239553,1744865440937,-500.0,0.00052054,120]
[358239554,1744865440947,-1026.14,0.00052054,120]
[358239555,1744865440956,-603.83,0.00052054,120]
[358239556,1744865440965,-531.25002038,0.00052054,120]
[358239557,1744865440974,-581.78,0.00052054,120]
[358239558,1744865440984,-536.5,0.00052054,120]
[358239559,1744865440993,-543.25,0.00052054,120]
[358239560,1744865441002,-507.50894623,0.00052054,120]
[358239561,1744865441011,-1000.0,0.00052054,120]
[358239562,1744865441021,-1262.21,0.00052054,120]
[358239563,1744865441030,-950.92,0.00052054,120]
[358239564,1744865441039,-500.0,0.00052054,120]
[358239565,1744865441049,-1151.88,0.00052054,120]
[358239566,1744865441058,-500.0,0.00052054,120]
[358239567,1744865441067,-2618.28,0.00052054,120]
[358239568,1744865441076,-500.0,0.00052054,120]
[358239569,1744865441085,-596.23060117,0.00052054,120]
[358239570,1744865441094,-500.0,0.00052054,120]
[358239571,1744865441104,-500.0,0.00052054,120]
[358239572,1744865441113,-1375.52,0.00052054,120]
[358239573,1744865441122,-533.58,0.00052054,120]
[358239574,1744865441132,-536.99967452,0.00052054,120]
[358239575,1744865441141,-452.16158446,0.00052054,120]
[358239576,1744865441150,-500.0,0.00052054,120]
[358239577,1744865441160,-500.0,0.00052054,120]
[358239578,1744865441169,-1099.26,0.00052054,120]
[358239579,1744865441178,-500.0,0.00052054,120]
[358239580,1744865441187,-500.0,0.00052054,120]
[358239581,1744865441204,-500.0,0.00052054,120]
[358239582,1744865441214,-1502.01,0.00052054,120]
[358239583,1744865441224,-500.0,0.00052054,120]
[358239584,1744865441233,-503.32108041,0.00052054,120]
[358239585,1744865441244,-1447.22,0.00052054,120]
[358239586,1744865441253,-1112.94,0.00052054,120]
[358239587,1744865441263,-500.0,0.00052054,120]
[358239588,1744865441274,-565.15154646,0.00052054,120]
[358239589,1744865441283,-1139.62,0.00052054,120]
[358239590,1744865441293,-959.01,0.00052054,8]
[358239591,1744865441302,-708.21,0.00052054,120]
[358239592,1744865441311,-500.0,0.00052054,120]
[358239593,1744865441322,-932.88,0.00052054,120]
[358239594,1744865441331,-500.0,0.00052054,120]
[358239595,1744865441338,-500.0,0.00052054,120]
[358239596,1744865441347,-3500.0,0.00052054,10]
[358239597,1744865441356,-500.0,0.00052054,120]
[358239598,1744865441365,-500.0,0.00052054,120]
[358239599,1744865441375,-640.34,0.00052054,120]
[358239600,1744865441385,-1111.95,0.00052054,120]
[358239601,1744865441395,-504.78528371,0.00052054,120]
[358239602,1744865441404,-500.0,0.00052054,120]
[358239603,1744865441414,-500.0,0.00052054,120]
[358239604,1744865441423,-2429.88,0.00052054,120]
[358239605,1744865441432,-500.0,0.00052054,120]
[358239606,1744865441441,-500.0,0.00052054,120]
[358239607,1744865441450,-500.0,0.00052054,120]
[358239608,1744865441459,-500.0,0.00052054,120]
[358239609,1744865441468,-500.0,0.00052054,120]
[358239610,1744865441477,-500.0,0.00052054,120]
[358239611,1744865441486,-514.62400742,0.00052054,120]
[358239612,1744865441495,-1840.78,0.00052054,120]
[358239613,1744865441505,-1114.43,0.00052054,120]
[358239614,1744865441514,-500.0,0.00052054,120]
[358239615,1744865441524,-900.32,0.00052054,120]
[358239616,1744865441534,-500.0,0.00052054,120]
[358239617,1744865441543,-500.0,0.00052054,120]
[358239618,1744865441552,-500.0,0.00052054,120]
[358239619,1744865441562,-500.0,0.00052054,120]
[358239620,1744865441572,-221.04426963,0.00052054,120]
[358239621,1744865441582,-1034.46,0.00052054,120]
[358239622,1744865441591,-500.0,0.00052054,120]
[358239623,1744865441600,-500.0,0.00052055,60]
[358239624,1744865441611,-250.36306374,0.00052055,60]
[358239625,1744865441620,-500.0,0.00052055,60]
[358239626,1744865441630,-500.0,0.00052055,60]
[358239627,1744865441639,-150.0,0.00052055,60]
[358239628,1744865441648,-150.0,0.00052055,60]
[358239629,1744865441658,-500.0,0.00052055,60]
[358239630,1744865441667,-2304.0,0.00052055,60]
[358239631,1744865441676,-500.0,0.00052055,60]
[358239632,1744865441685,-150.0,0.00052055,60]
[358239633,1744865441695,-500.0,0.00052055,60]
[358239634,1744865441704,-500.0,0.00052055,60]
[358239635,1744865441713,-150.0,0.00052055,60]
[358239636,1744865441722,-150.0,0.00052055,60]
[358239637,1744865441732,-500.0,0.00052055,60]
[358239638,1744865441742,-500.0,0.00052055,60]
[358239639,1744865441751,-150.0,0.00052055,60]
[358239640,1744865441760,-196.24123542,0.00052055,60]
[358239641,1744865441770,-150.0,0.00052055,60]
[358239642,1744865441779,-500.0,0.00052055,30]
[358239643,1744865441789,-244.21108207,0.00052055,30]
[358239644,1744865441798,-500.0,0.00052055,30]
[358239645,1744865441808,-500.0,0.00052055,30]
[358239646,1744865441822,-150.0,0.00052055,30]
[358239647,1744865441831,-150.1,0.00052066,2]
[358239648,1744865441840,-500.0,0.00052073,10]
[358239649,1744865441850,-3141.30399419,0.00052137,15]
[358239650,1744865441859,-151.73518873,0.00052203,2]
[358239651,1744865441869,-450.05404986,0.00052219,47]
[358239652,1744865441879,-384.31827556,0.00052228,29]
[358239653,1744865441888,-232.11,0.00052292,120]
[358239654,1744865441898,-17488.8356489,0.00052297,4]
[358239655,1744865441908,-17488.8356489,0.00052298,4]
[358239656,1744865441917,-11836.7504482,0.00052298,4]
[358239657,1744865441927,-69955.3425958,0.00052307,4]
[358239658,1744865441936,-63439.34047688,0.00052307,4]
[358239681,1744865445788,-150.0,0.00052044,4]
[358239682,1744865445798,-238.5840142,0.00052054,120]
[358239683,1744865445811,-261.4159858,0.00052054,120]
[358239684,1744865445826,-1169.67,0.00052054,120]
[358239685,1744865445836,-582.45,0.00052054,120]
[358239686,1744865445846,-19417.91266042,0.00052307,4]
[358239687,1744865445856,-212.68623052,0.00052308,7]
[358239688,1744865445866,-90.55471029,0.00052308,4]
[358239689,1744865486144,500.0,0.0002,2]
[358239690,1744865493786,250.0,0.00017,2]
[358239691,1744865494550,500.0,0.0002,2]
[358239692,1744865494863,300.0,0.00019,2]
[358239694,1744865506800,495.0,0.0002,2]
[358239696,1744865671611,218.3,0.000265,120]
[358239700,1744865846216,-174.13,0.00052,120]
[358239701,1744866001294,-174.13,0.00024932,2]
[358239703,1744866012960,1509.0,0.000265,120]
[358239705,1744866033406,-168.0581565,0.00050458,120]
[358239706,1744866391202,-116.68,0.00024932,2]
[358239707,1744866391224,-147.8101255,0.00027425,2]
[358239708,1744866438077,-102.1898745,0.00027425,2]
[358239709,1744866438099,-290.81,0.00030829,2]
[358239710,1744866438123,-171.39,0.00032877,30]
[358239711,1744866438146,-151.0,0.00035094,2]
[358239712,1744866438167,-151.0,0.00035094,2]
[358239713,1744866438190,-151.0,0.00035099,2]
[358239714,1744866438215,-151.0,0.00035099,2]
[358239715,1744866438237,-290.81,0.00036727,2]
[358239716,1744866438261,-249.4723984,0.0004,7]
[358239717,1744866441091,-151.0,0.00035246,2]
[358239718,1744866441113,-151.0,0.00035246,2]
[358239719,1744866441139,-248.57182111,0.0004,7]
[358239721,1744866631574,-151.0,0.0003604,2]
[358239722,1744866631583,-151.0,0.0003604,2]
[358239723,1744866631593,-151.0,0.00036419,2]
[358239724,1744866631603,-151.0,0.00036419,2]
[358239726,1744866631612,-500.0,0.00039644,2]
[358239727,1744866631624,-256.878435,0.0004,7]
[358239728,1744866631634,-500.0,0.00042384,2]
[358239729,1744866631644,-210.90569853,0.00042524,2]
[358239730,1744866631653,-290.81,0.00042624,2]
[358239731,1744866631663,-377.0,0.00042932,2]
[358239732,1744866631672,-199.65906639,0.00044181,30]
[358239733,1744866631682,-4000.0,0.00044181,120]
[358239734,1744866631696,-796.01,0.00048161,2]
[358239735,1744866631705,-290.81,0.00048522,2]
[358239736,1744866631715,-1000.0,0.00049614,120]
[358239737,1744866631725,-550.0,0.00049683,5]
[358239738,1744866631735,-713.099563,0.00049684,4]
[358239739,1744866631745,-300.0,0.00049813,5]
[358239740,1744866631755,-323.79,0.00049814,120]
[358239741,1744866631764,-107.07567268,0.00050299,2]
[358239742,1744866631785,-87.49432732,0.00050299,2]
[358239743,1744866631795,-293.54,0.00050329,2]
[358239744,1744866631804,-200.0,0.00050329,7]
[358239745,1744866631814,-796.01,0.00050425,2]
[358239746,1744866631823,-1328.0,0.00050458,120]
[358239747,1744866631833,-2048.0,0.00050458,120]
[358239748,1744866631843,-1288.0,0.00050458,120]
[358239749,1744866631852,-792.0,0.00050458,2]
[358239750,1744866631862,-1439.0,0.00050458,120]
[358239751,1744866631871,-545.0,0.00050458,120]
[358239752,1744866631883,-1280.0,0.00050458,120]
[358239753,1744866631893,-910.0,0.00050458,120]
[358239754,1744866631903,-4150.0,0.00050458,120]
[358239755,1744866631912,-576.0,0.00050458,120]
[358239757,1744866631922,-500.0,0.00050493,2]
[358239758,1744866631931,-2435.75,0.00050645,2]
[358239760,1744866631941,-2000.0,0.00051,2]
[358239762,1744866631950,-1073.0,0.00051,16]
[358239764,1744866631961,-1000.0,0.00051,25]
[358239766,1744866631971,-1000.0,0.00051,25]
[358239768,1744866631981,-1000.0,0.00051,9]
[358239771,1744866631991,-229.0,0.00051,30]
[358239773,1744866632001,-1000.0,0.00051,9]
[358239775,1744866632010,-336.13005503,0.00051,7]
[358239778,1744866632035,-663.86994497,0.00051,7]
[358239780,1744866632045,-491.0,0.00051,120]
[358239782,1744866632055,-561.48680741,0.00051144,2]
[358239784,1744866632066,-3053.13319259,0.00051144,2]
[358239786,1744866632076,-167.53,0.00051149,2]
[358239788,1744866632085,-1000.0,0.000512,2]
[358239790,1744866632095,-1000.0,0.000512,40]
[358239792,1744866632104,-1000.0,0.000512,40]
[358239794,1744866632114,-1000.0,0.000512,40]
[358239796,1744866632123,-1000.0,0.000512,40]
[358239798,1744866632132,-1000.0,0.000512,40]